[Event "Titled Tuesday Blitz March 21 Late 2023"]
[White "Seemann, Jakub"]
[Black "Mika, Tomasz"]
[WhiteFideId "21874697"]
[BlackFideId "1132970"]
[WhiteElo "2364"]
[BlackElo "2179"]
[Result "1-0"]
[Round "01"]
[TimeControl "180+2"]
[Date "2023.03.21"]
[WhiteClock "0:01:10"]
[BlackClock "0:00:13"]

1. Nf3 {[%clk 0:02:57]}  d5 {[%clk 0:02:59]} 2. e3 {[%clk 0:02:55]}  Nf6 {[%clk 0:02:58]} 3. c4 {[%clk 0:02:55]}  c6 {[%clk 0:02:58]} 4. Nc3 {[%clk 0:02:55]}  e6 {[%clk 0:02:56]} 5. b3 {[%clk 0:02:52]}  Be7 {[%clk 0:02:56]} 6. Bb2 {[%clk 0:02:53]}  O-O {[%clk 0:02:57]} 7. Be2 {[%clk 0:02:50]}  b6 {[%clk 0:02:56]} 8. O-O {[%clk 0:02:50]}  Bb7 {[%clk 0:02:56]} 9. Rc1 {[%clk 0:02:50]}  c5 {[%clk 0:02:56]} 10. cxd5 {[%clk 0:02:49]}  Nxd5 {[%clk 0:02:55]} 11. Nxd5 {[%clk 0:02:47]}  Bxd5 {[%clk 0:02:53]} 12. Qc2 {[%clk 0:02:41]}  Bf6 {[%clk 0:02:47]} 13. Rfd1 {[%clk 0:02:40]}  Nc6 {[%clk 0:02:46]} 14. a3 {[%clk 0:02:38]}  Rc8 {[%clk 0:02:33]} 15. d3 {[%clk 0:02:28]}  Na5 {[%clk 0:02:21]} 16. Nd2 {[%clk 0:02:24]}  Qe7 {[%clk 0:01:45]} 17. Nc4 {[%clk 0:02:11]}  Nxc4 {[%clk 0:01:25]} 18. bxc4 {[%clk 0:02:08]}  Bc6 {[%clk 0:01:22]} 19. Bxf6 {[%clk 0:02:04]}  Qxf6 {[%clk 0:01:21]} 20. a4 {[%clk 0:02:05]}  Rfd8 {[%clk 0:01:06]} 21. Ra1 {[%clk 0:02:03]}  e5 {[%clk 0:00:55]} 22. a5 {[%clk 0:01:56]}  g6 {[%clk 0:00:54]} 23. axb6 {[%clk 0:01:55]}  axb6 {[%clk 0:00:54]} 24. Ra6 {[%clk 0:01:50]}  Bb7 {[%clk 0:00:51]} 25. Ra7 {[%clk 0:01:50]}  Rb8 {[%clk 0:00:51]} 26. Rda1 {[%clk 0:01:48]}  Kg7 {[%clk 0:00:48]} 27. Bf1 {[%clk 0:01:46]}  Rd6 {[%clk 0:00:47]} 28. Qb2 {[%clk 0:01:40]}  h5 {[%clk 0:00:44]} 29. Rb1 {[%clk 0:01:22]}  e4 {[%clk 0:00:34]} 30. Qxf6+ {[%clk 0:01:20]}  Kxf6 {[%clk 0:00:35]} 31. d4 {[%clk 0:01:14]}  cxd4 {[%clk 0:00:29]} 32. exd4 {[%clk 0:01:11]}  Ra8 {[%clk 0:00:13]} 33. Rxb7 {[%clk 0:01:10]} 1-0


[Site "https://www.chess.com"]

[Event "Titled Tuesday Blitz March 21 Late 2023"]
[White "Ozates, Tuna"]
[Black "Barria Santos, Jose Guilherme"]
[WhiteFideId "6354521"]
[BlackFideId "1939300"]
[WhiteElo "2151"]
[BlackElo "2301"]
[Result "1-0"]
[Round "01"]
[TimeControl "180+2"]
[Date "2023.03.21"]
[WhiteClock "0:00:25"]
[BlackClock "0:00:07"]

1. e4 {[%clk 0:02:52]}  c5 {[%clk 0:03:00]} 2. Nf3 {[%clk 0:02:40]}  d6 {[%clk 0:03:00]} 3. d4 {[%clk 0:02:39]}  cxd4 {[%clk 0:03:01]} 4. Nxd4 {[%clk 0:02:40]}  Nf6 {[%clk 0:03:01]} 5. Nc3 {[%clk 0:02:38]}  a6 {[%clk 0:03:01]} 6. Be2 {[%clk 0:02:34]}  e5 {[%clk 0:03:01]} 7. Nb3 {[%clk 0:02:33]}  Be7 {[%clk 0:03:01]} 8. O-O {[%clk 0:02:33]}  Be6 {[%clk 0:03:01]} 9. f3 {[%clk 0:02:26]}  O-O {[%clk 0:03:01]} 10. Nd5 {[%clk 0:02:26]}  Bxd5 {[%clk 0:03:00]} 11. exd5 {[%clk 0:02:26]}  Nbd7 {[%clk 0:03:00]} 12. c4 {[%clk 0:02:26]}  Rc8 {[%clk 0:03:00]} 13. Be3 {[%clk 0:02:25]}  b6 {[%clk 0:02:39]} 14. Qd2 {[%clk 0:02:25]}  Nc5 {[%clk 0:02:36]} 15. Bxc5 {[%clk 0:02:08]}  bxc5 {[%clk 0:02:37]} 16. Na5 {[%clk 0:02:08]}  Qb6 {[%clk 0:02:25]} 17. Nc6 {[%clk 0:02:07]}  Rfe8 {[%clk 0:02:24]} 18. Kh1 {[%clk 0:02:06]}  Nh5 {[%clk 0:02:11]} 19. g3 {[%clk 0:02:03]}  Nf6 {[%clk 0:02:09]} 20. Rab1 {[%clk 0:02:00]}  Bf8 {[%clk 0:01:59]} 21. Qe3 {[%clk 0:01:57]}  e4 {[%clk 0:01:37]} 22. f4 {[%clk 0:01:55]}  Rxc6 {[%clk 0:01:32]} 23. dxc6 {[%clk 0:01:55]}  Qxc6 {[%clk 0:01:32]} 24. Kg1 {[%clk 0:01:43]}  d5 {[%clk 0:01:29]} 25. cxd5 {[%clk 0:01:43]}  Nxd5 {[%clk 0:01:30]} 26. Qb3 {[%clk 0:01:42]}  Nb4 {[%clk 0:01:17]} 27. Bc4 {[%clk 0:01:40]}  Qc7 {[%clk 0:01:08]} 28. Rbe1 {[%clk 0:01:37]}  g6 {[%clk 0:00:57]} 29. f5 {[%clk 0:01:27]}  g5 {[%clk 0:00:30]} 30. f6 {[%clk 0:01:18]}  Bd6 {[%clk 0:00:27]} 31. Rf5 {[%clk 0:01:17]}  h6 {[%clk 0:00:27]} 32. Qe3 {[%clk 0:01:12]}  Be5 {[%clk 0:00:24]} 33. Rxg5+ {[%clk 0:01:10]}  Kf8 {[%clk 0:00:19]} 34. Rxe5 {[%clk 0:00:39]}  Rxe5 {[%clk 0:00:19]} 35. Qxh6+ {[%clk 0:00:40]}  Ke8 {[%clk 0:00:19]} 36. Qh8+ {[%clk 0:00:40]}  Kd7 {[%clk 0:00:19]} 37. Bxf7 {[%clk 0:00:37]}  Nd3 {[%clk 0:00:15]} 38. Rd1 {[%clk 0:00:32]}  Kc6 {[%clk 0:00:13]} 39. Be8+ {[%clk 0:00:29]}  Kb6 {[%clk 0:00:13]} 40. f7 {[%clk 0:00:29]}  c4 {[%clk 0:00:07]} 41. f8=Q {[%clk 0:00:25]} 1-0


[Site "https://www.chess.com"]

[Event "Titled Tuesday Blitz March 21 Late 2023"]
[White "Dylag, Emilia"]
[Black "Turayev, Shahruh"]
[WhiteFideId "21805172"]
[BlackFideId "14003856"]
[WhiteElo "1878"]
[BlackElo "2171"]
[Result "0-1"]
[Round "01"]
[TimeControl "180+2"]
[Date "2023.03.21"]
[WhiteClock "0:00:02"]
[BlackClock "0:00:40"]

1. d4 {[%clk 0:02:59]}  d5 {[%clk 0:02:59]} 2. g3 {[%clk 0:02:56]}  Nf6 {[%clk 0:02:59]} 3. Bg2 {[%clk 0:02:55]}  e6 {[%clk 0:02:59]} 4. Nf3 {[%clk 0:02:55]}  Be7 {[%clk 0:02:56]} 5. O-O {[%clk 0:02:55]}  O-O {[%clk 0:02:56]} 6. Nbd2 {[%clk 0:02:52]}  c5 {[%clk 0:02:47]} 7. b3 {[%clk 0:02:47]}  cxd4 {[%clk 0:02:46]} 8. Bb2 {[%clk 0:02:44]}  Nc6 {[%clk 0:02:45]} 9. Nxd4 {[%clk 0:02:43]}  Qc7 {[%clk 0:02:42]} 10. c4 {[%clk 0:02:40]}  e5 {[%clk 0:02:35]} 11. Nxc6 {[%clk 0:02:34]}  bxc6 {[%clk 0:02:36]} 12. cxd5 {[%clk 0:02:33]}  cxd5 {[%clk 0:02:37]} 13. Rc1 {[%clk 0:02:33]}  Qb8 {[%clk 0:02:14]} 14. Nf3 {[%clk 0:02:28]}  Bd6 {[%clk 0:02:10]} 15. Qd2 {[%clk 0:02:08]}  Bb7 {[%clk 0:02:00]} 16. Rfd1 {[%clk 0:02:06]}  d4 {[%clk 0:01:52]} 17. Qa5 {[%clk 0:02:06]}  Be4 {[%clk 0:01:35]} 18. Ba3 {[%clk 0:01:49]}  Bxa3 {[%clk 0:01:31]} 19. Qxa3 {[%clk 0:01:50]}  Qb7 {[%clk 0:01:29]} 20. Qd6 {[%clk 0:01:44]}  d3 {[%clk 0:01:24]} 21. Rxd3 {[%clk 0:01:29]}  Bxd3 {[%clk 0:01:23]} 22. exd3 {[%clk 0:01:30]}  Rad8 {[%clk 0:01:22]} 23. Qxe5 {[%clk 0:01:29]}  Rfe8 {[%clk 0:01:20]} 24. Qf5 {[%clk 0:01:27]}  Qd7 {[%clk 0:01:13]} 25. Qxd7 {[%clk 0:01:16]}  Rxd7 {[%clk 0:01:14]} 26. d4 {[%clk 0:01:16]}  g6 {[%clk 0:01:12]} 27. h3 {[%clk 0:01:10]}  Re2 {[%clk 0:01:09]} 28. a4 {[%clk 0:00:55]}  Rb2 {[%clk 0:01:04]} 29. Rc8+ {[%clk 0:00:49]}  Kg7 {[%clk 0:01:03]} 30. Rb8 {[%clk 0:00:50]}  Ne4 {[%clk 0:00:53]} 31. Ne5 {[%clk 0:00:29]}  Rxd4 {[%clk 0:00:52]} 32. Rb7 {[%clk 0:00:26]}  Rd1+ {[%clk 0:00:53]} 33. Kh2 {[%clk 0:00:25]}  Rxf2 {[%clk 0:00:53]} 34. Nxf7 {[%clk 0:00:18]}  Rxf7 {[%clk 0:00:38]} 35. Rxf7+ {[%clk 0:00:19]}  Kxf7 {[%clk 0:00:39]} 36. Bxe4 {[%clk 0:00:17]}  a5 {[%clk 0:00:39]} 37. g4 {[%clk 0:00:15]}  h6 {[%clk 0:00:37]} 38. Kg3 {[%clk 0:00:14]}  Kf6 {[%clk 0:00:37]} 39. Kf2 {[%clk 0:00:10]}  g5 {[%clk 0:00:37]} 40. Kg2 {[%clk 0:00:06]}  Rc1 {[%clk 0:00:37]} 41. Bd5 {[%clk 0:00:05]}  Ke5 {[%clk 0:00:38]} 42. Bc4 {[%clk 0:00:05]}  Kd4 {[%clk 0:00:39]} 43. Bg8 {[%clk 0:00:04]}  Ke3 {[%clk 0:00:37]} 44. Kg3 {[%clk 0:00:04]}  Rg1+ {[%clk 0:00:37]} 45. Kh2 {[%clk 0:00:04]}  Rb1 {[%clk 0:00:38]} 46. Kg3 {[%clk 0:00:03]}  Rb2 {[%clk 0:00:38]} 47. Bf7 {[%clk 0:00:02]}  Kd4 {[%clk 0:00:39]} 48. Be6 {[%clk 0:00:02]}  Kc3 {[%clk 0:00:38]} 49. h4 {[%clk 0:00:02]}  Rxb3 {[%clk 0:00:33]} 50. Bxb3 {[%clk 0:00:01]}  Kxb3 {[%clk 0:00:34]} 51. hxg5 {[%clk 0:00:02]}  hxg5 {[%clk 0:00:35]} 52. Kf3 {[%clk 0:00:03]}  Kxa4 {[%clk 0:00:36]} 53. Ke4 {[%clk 0:00:04]}  Kb4 {[%clk 0:00:36]} 54. Kf5 {[%clk 0:00:05]}  a4 {[%clk 0:00:37]} 55. Kxg5 {[%clk 0:00:05]}  a3 {[%clk 0:00:37]} 56. Kh6 {[%clk 0:00:05]}  a2 {[%clk 0:00:38]} 57. g5 {[%clk 0:00:05]}  a1=Q {[%clk 0:00:39]} 58. g6 {[%clk 0:00:05]}  Qh8+ {[%clk 0:00:40]} 59. Kg5 {[%clk 0:00:02]}  Qg7 {[%clk 0:00:40]} 0-1


[Site "https://www.chess.com"]

[Event "Titled Tuesday Blitz March 21 Late 2023"]
[White "Sabar, Ethmane Daouda"]
[Black "Sielecki, Christof"]
[WhiteFideId "19600097"]
[BlackFideId "4620437"]
[WhiteElo "1950"]
[BlackElo "2443"]
[Result "0-1"]
[Round "01"]
[TimeControl "180+2"]
[Date "2023.03.21"]
[WhiteClock "0:00:44"]
[BlackClock "0:00:57"]

1. b3 {[%clk 0:02:59]}  d5 {[%clk 0:02:58]} 2. Bb2 {[%clk 0:03:00]}  c5 {[%clk 0:02:54]} 3. e3 {[%clk 0:03:00]}  Nf6 {[%clk 0:02:54]} 4. f4 {[%clk 0:03:00]}  g6 {[%clk 0:02:53]} 5. Bxf6 {[%clk 0:02:59]}  exf6 {[%clk 0:02:53]} 6. d4 {[%clk 0:02:53]}  Nc6 {[%clk 0:02:49]} 7. Nf3 {[%clk 0:02:54]}  Bd6 {[%clk 0:02:40]} 8. Be2 {[%clk 0:02:45]}  O-O {[%clk 0:02:38]} 9. O-O {[%clk 0:02:45]}  Re8 {[%clk 0:02:37]} 10. c4 {[%clk 0:02:30]}  Rxe3 {[%clk 0:02:29]} 11. dxc5 {[%clk 0:02:22]}  Bxc5 {[%clk 0:02:25]} 12. Kh1 {[%clk 0:02:18]}  d4 {[%clk 0:02:18]} 13. Nfd2 {[%clk 0:02:14]}  d3 {[%clk 0:02:15]} 14. Bf3 {[%clk 0:02:13]}  Qd4 {[%clk 0:02:05]} 15. Ne4 {[%clk 0:01:58]}  Rxe4 {[%clk 0:01:56]} 16. Bxe4 {[%clk 0:01:58]}  Qxe4 {[%clk 0:01:57]} 17. Nc3 {[%clk 0:01:59]}  Qf5 {[%clk 0:01:50]} 18. Nd5 {[%clk 0:01:57]}  Be6 {[%clk 0:01:45]} 19. b4 {[%clk 0:01:52]}  Bxd5 {[%clk 0:01:40]} 20. cxd5 {[%clk 0:01:50]}  Nxb4 {[%clk 0:01:38]} 21. Rc1 {[%clk 0:01:41]}  Qxd5 {[%clk 0:01:36]} 22. Rf3 {[%clk 0:01:34]}  Re8 {[%clk 0:01:33]} 23. Qa4 {[%clk 0:01:25]}  Re4 {[%clk 0:01:18]} 24. Rd1 {[%clk 0:01:04]}  d2 {[%clk 0:01:12]} 25. a3 {[%clk 0:00:51]}  Re1+ {[%clk 0:01:07]} 26. Rf1 {[%clk 0:00:50]}  Nd3 {[%clk 0:00:58]} 27. Rfxe1 {[%clk 0:00:44]}  dxe1=Q+ {[%clk 0:00:57]} 28. Rxe1 {[%clk 0:00:43]}  Nxe1 {[%clk 0:00:58]} 29. Qe8+ {[%clk 0:00:43]}  Kg7 {[%clk 0:00:58]} 30. Qxe1 {[%clk 0:00:44]}  Bxa3 {[%clk 0:00:57]} 0-1


[Site "https://www.chess.com"]

[Event "Titled Tuesday Blitz March 21 Late 2023"]
[White "Blomqvist, Erik"]
[Black "Lopez Perdomo, Juan David"]
[WhiteFideId "1709437"]
[BlackFideId "4405137"]
[WhiteElo "2436"]
[BlackElo "1965"]
[Result "1-0"]
[Round "01"]
[TimeControl "180+2"]
[Date "2023.03.21"]
[WhiteClock "0:00:25"]
[BlackClock "0:00:04"]

1. e4 {[%clk 0:03:00]}  e6 {[%clk 0:02:55]} 2. d4 {[%clk 0:03:00]}  d5 {[%clk 0:02:51]} 3. e5 {[%clk 0:03:01]}  c5 {[%clk 0:02:50]} 4. c3 {[%clk 0:03:02]}  Nc6 {[%clk 0:02:50]} 5. Nf3 {[%clk 0:03:02]}  f6 {[%clk 0:02:50]} 6. Bb5 {[%clk 0:03:00]}  Bd7 {[%clk 0:02:48]} 7. exf6 {[%clk 0:02:49]}  Nxf6 {[%clk 0:02:47]} 8. O-O {[%clk 0:02:47]}  Bd6 {[%clk 0:02:47]} 9. dxc5 {[%clk 0:02:34]}  Bxc5 {[%clk 0:02:48]} 10. c4 {[%clk 0:02:25]}  d4 {[%clk 0:02:28]} 11. Bg5 {[%clk 0:02:20]}  O-O {[%clk 0:02:26]} 12. Nbd2 {[%clk 0:02:18]}  Qc7 {[%clk 0:01:30]} 13. a3 {[%clk 0:02:04]}  e5 {[%clk 0:01:24]} 14. Re1 {[%clk 0:01:52]}  Bg4 {[%clk 0:01:21]} 15. b4 {[%clk 0:01:40]}  Be7 {[%clk 0:01:20]} 16. Qb1 {[%clk 0:01:29]}  Bxf3 {[%clk 0:00:41]} 17. Nxf3 {[%clk 0:01:29]}  e4 {[%clk 0:00:38]} 18. Bxc6 {[%clk 0:01:20]}  bxc6 {[%clk 0:00:29]} 19. Nxd4 {[%clk 0:01:20]}  Ng4 {[%clk 0:00:30]} 20. g3 {[%clk 0:01:02]}  Bxg5 {[%clk 0:00:30]} 21. Qxe4 {[%clk 0:00:59]}  Nxf2 {[%clk 0:00:27]} 22. Qg2 {[%clk 0:00:41]}  Qd7 {[%clk 0:00:23]} 23. Ne6 {[%clk 0:00:39]}  Rf6 {[%clk 0:00:20]} 24. Nxg5 {[%clk 0:00:38]}  h6 {[%clk 0:00:19]} 25. Ne4 {[%clk 0:00:35]}  Nh3+ {[%clk 0:00:14]} 26. Kh1 {[%clk 0:00:35]}  Rf7 {[%clk 0:00:11]} 27. Rad1 {[%clk 0:00:31]}  Re8 {[%clk 0:00:11]} 28. Rxd7 {[%clk 0:00:31]}  Nf2+ {[%clk 0:00:04]} 29. Kg1 {[%clk 0:00:25]} 1-0


[Site "https://www.chess.com"]

[Event "Titled Tuesday Blitz March 21 Late 2023"]
[White "Elaisaz"]
[Black "Poliakova, Varvara"]
[BlackFideId "13518313"]
[WhiteElo "2209"]
[BlackElo "2075"]
[Result "0-1"]
[Round "01"]
[TimeControl "180+2"]
[Date "2023.03.21"]
[WhiteClock "0:01:30"]
[BlackClock "0:01:41"]

1. c4 {[%clk 0:02:48]}  e5 {[%clk 0:02:59]} 2. g3 {[%clk 0:02:48]}  Nf6 {[%clk 0:02:59]} 3. Nc3 {[%clk 0:02:46]}  d5 {[%clk 0:02:59]} 4. cxd5 {[%clk 0:02:45]}  Nxd5 {[%clk 0:03:00]} 5. Bg2 {[%clk 0:02:45]}  Nb6 {[%clk 0:02:59]} 6. d3 {[%clk 0:02:44]}  Nc6 {[%clk 0:02:59]} 7. Nf3 {[%clk 0:02:44]}  Be7 {[%clk 0:02:59]} 8. O-O {[%clk 0:02:43]}  O-O {[%clk 0:02:59]} 9. Be3 {[%clk 0:02:34]}  Be6 {[%clk 0:02:58]} 10. Rc1 {[%clk 0:02:32]}  f6 {[%clk 0:02:58]} 11. a3 {[%clk 0:02:26]}  a5 {[%clk 0:02:56]} 12. b3 {[%clk 0:02:19]}  Bxa3 {[%clk 0:02:53]} 13. Rb1 {[%clk 0:02:19]}  Be7 {[%clk 0:02:51]} 14. Ne4 {[%clk 0:02:18]}  Nd5 {[%clk 0:02:48]} 15. Bc5 {[%clk 0:02:15]}  Bf7 {[%clk 0:02:41]} 16. Qc2 {[%clk 0:02:14]}  Ncb4 {[%clk 0:02:39]} 17. Qc1 {[%clk 0:02:13]}  b6 {[%clk 0:02:32]} 18. Bxe7 {[%clk 0:02:05]}  Qxe7 {[%clk 0:02:33]} 19. Nfd2 {[%clk 0:02:04]}  f5 {[%clk 0:02:24]} 20. Nc3 {[%clk 0:02:03]}  Rad8 {[%clk 0:02:23]} 21. Nc4 {[%clk 0:02:01]}  Qf6 {[%clk 0:02:17]} 22. Nb5 {[%clk 0:01:57]}  Rd7 {[%clk 0:02:14]} 23. Qb2 {[%clk 0:01:52]}  Re8 {[%clk 0:02:08]} 24. Rbc1 {[%clk 0:01:48]}  e4 {[%clk 0:02:01]} 25. Qd2 {[%clk 0:01:45]}  exd3 {[%clk 0:01:59]} 26. exd3 {[%clk 0:01:45]}  c6 {[%clk 0:01:55]} 27. Nba3 {[%clk 0:01:42]}  Rde7 {[%clk 0:01:50]} 28. Nc2 {[%clk 0:01:29]}  Re2 {[%clk 0:01:46]} 29. Qd1 {[%clk 0:01:29]}  Nxc2 {[%clk 0:01:44]} 30. Rxc2 {[%clk 0:01:29]}  Rxc2 {[%clk 0:01:43]} 31. Qxc2 {[%clk 0:01:30]}  Nb4 {[%clk 0:01:41]} 32. Nxb6 {[%clk 0:01:30]}  Nxc2 {[%clk 0:01:41]} 0-1


[Site "https://www.chess.com"]

[Event "Titled Tuesday Blitz March 21 Late 2023"]
[White "lisjakzlatko1"]
[Black "Cremisi, Daniel"]
[BlackFideId "2089882"]
[WhiteElo "2192"]
[BlackElo "2172"]
[Result "0-1"]
[Round "01"]
[TimeControl "180+2"]
[Date "2023.03.21"]
[WhiteClock "0:00:01"]
[BlackClock "0:02:06"]

1. e4 {[%clk 0:02:56]}  e6 {[%clk 0:02:59]} 2. d4 {[%clk 0:02:54]}  d5 {[%clk 0:02:59]} 3. e5 {[%clk 0:02:54]}  c5 {[%clk 0:03:00]} 4. c3 {[%clk 0:02:53]}  Nc6 {[%clk 0:03:00]} 5. Nf3 {[%clk 0:02:53]}  Qb6 {[%clk 0:03:01]} 6. Bd3 {[%clk 0:02:52]}  cxd4 {[%clk 0:03:01]} 7. cxd4 {[%clk 0:02:51]}  Bd7 {[%clk 0:03:01]} 8. O-O {[%clk 0:02:49]}  Nxd4 {[%clk 0:03:02]} 9. Nbd2 {[%clk 0:02:49]}  Nc6 {[%clk 0:03:01]} 10. Nb3 {[%clk 0:02:47]}  Nge7 {[%clk 0:03:00]} 11. Be3 {[%clk 0:02:46]}  Qc7 {[%clk 0:03:00]} 12. Rc1 {[%clk 0:02:41]}  Ng6 {[%clk 0:02:59]} 13. Re1 {[%clk 0:02:22]}  Ngxe5 {[%clk 0:02:57]} 14. Nxe5 {[%clk 0:02:20]}  Qxe5 {[%clk 0:02:57]} 15. Bxa7 {[%clk 0:02:14]}  Qxb2 {[%clk 0:02:55]} 16. Rc2 {[%clk 0:02:05]}  Qa3 {[%clk 0:02:51]} 17. Bc5 {[%clk 0:02:02]}  Bxc5 {[%clk 0:02:48]} 18. Nxc5 {[%clk 0:02:03]}  Nb4 {[%clk 0:02:47]} 19. Rce2 {[%clk 0:01:46]}  Nxd3 {[%clk 0:02:44]} 20. Nxe6 {[%clk 0:00:58]}  fxe6 {[%clk 0:02:37]} 21. Re3 {[%clk 0:00:48]}  O-O {[%clk 0:02:26]} 22. Rxd3 {[%clk 0:00:41]}  Qxa2 {[%clk 0:02:26]} 23. Rd2 {[%clk 0:00:39]}  Qc4 {[%clk 0:02:24]} 24. h3 {[%clk 0:00:30]}  b5 {[%clk 0:02:23]} 25. Rc2 {[%clk 0:00:27]}  Qf4 {[%clk 0:02:22]} 26. Re3 {[%clk 0:00:24]}  Rac8 {[%clk 0:02:18]} 27. Rce2 {[%clk 0:00:20]}  d4 {[%clk 0:02:17]} 28. g3 {[%clk 0:00:19]}  Qf6 {[%clk 0:02:13]} 29. Rd3 {[%clk 0:00:16]}  Bc6 {[%clk 0:02:13]} 30. f4 {[%clk 0:00:12]}  Rcd8 {[%clk 0:02:09]} 31. Kh2 {[%clk 0:00:09]}  Qf5 {[%clk 0:02:08]} 32. Rxd4 {[%clk 0:00:06]}  Rxd4 {[%clk 0:02:06]} 33. Qxd4 {[%clk 0:00:06]}  Qd5 {[%clk 0:02:05]} 34. Qxd5 {[%clk 0:00:05]}  Bxd5 {[%clk 0:02:06]} 35. Rb2 {[%clk 0:00:02]}  Rb8 {[%clk 0:02:06]} 36. Rb4 {[%clk 0:00:01]}  Bc4 {[%clk 0:02:06]} 37. g4 {[%clk 0:00:01]}  Ra8 {[%clk 0:02:06]} 0-1


[Site "https://www.chess.com"]

[Event "Titled Tuesday Blitz March 21 Late 2023"]
[White "Ismagilov, Damir"]
[Black "salgadoLO"]
[WhiteFideId "34199982"]
[WhiteElo "2078"]
[BlackElo "2188"]
[Result "1-0"]
[Round "01"]
[TimeControl "180+2"]
[Date "2023.03.21"]
[WhiteClock "0:00:29"]
[BlackClock "0:00:02"]

1. d4 {[%clk 0:03:00]}  d5 {[%clk 0:02:59]} 2. Nf3 {[%clk 0:03:01]}  e6 {[%clk 0:02:57]} 3. Bg5 {[%clk 0:03:01]}  Be7 {[%clk 0:02:56]} 4. Bxe7 {[%clk 0:03:01]}  Qxe7 {[%clk 0:02:56]} 5. Nbd2 {[%clk 0:03:01]}  Nf6 {[%clk 0:02:56]} 6. e3 {[%clk 0:03:01]}  b6 {[%clk 0:02:56]} 7. c3 {[%clk 0:03:00]}  Bb7 {[%clk 0:02:56]} 8. Bd3 {[%clk 0:03:00]}  Nbd7 {[%clk 0:02:56]} 9. O-O {[%clk 0:03:00]}  O-O {[%clk 0:02:53]} 10. a4 {[%clk 0:03:01]}  e5 {[%clk 0:02:50]} 11. dxe5 {[%clk 0:03:00]}  Nxe5 {[%clk 0:02:51]} 12. Nxe5 {[%clk 0:03:01]}  Qxe5 {[%clk 0:02:51]} 13. a5 {[%clk 0:03:01]}  Rfe8 {[%clk 0:02:40]} 14. Nf3 {[%clk 0:03:00]}  Qd6 {[%clk 0:02:38]} 15. a6 {[%clk 0:02:51]}  Bc6 {[%clk 0:02:37]} 16. Qc2 {[%clk 0:02:50]}  h6 {[%clk 0:02:36]} 17. Rad1 {[%clk 0:02:49]}  Qe7 {[%clk 0:02:27]} 18. Rfe1 {[%clk 0:02:46]}  Rad8 {[%clk 0:02:26]} 19. b4 {[%clk 0:02:43]}  Qd7 {[%clk 0:02:21]} 20. Nd4 {[%clk 0:02:38]}  Ba4 {[%clk 0:02:19]} 21. Nb3 {[%clk 0:02:22]}  c5 {[%clk 0:02:09]} 22. bxc5 {[%clk 0:02:18]}  bxc5 {[%clk 0:01:51]} 23. c4 {[%clk 0:02:07]}  Rb8 {[%clk 0:01:43]} 24. Nxc5 {[%clk 0:02:06]}  Bxc2 {[%clk 0:01:35]} 25. Nxd7 {[%clk 0:02:05]}  Bxd1 {[%clk 0:01:18]} 26. Nxb8 {[%clk 0:02:03]}  Ba4 {[%clk 0:01:07]} 27. Rb1 {[%clk 0:02:00]}  dxc4 {[%clk 0:01:00]} 28. Bxc4 {[%clk 0:01:58]}  Rc8 {[%clk 0:00:55]} 29. Be2 {[%clk 0:01:41]}  Ne4 {[%clk 0:00:52]} 30. h3 {[%clk 0:01:15]}  Nc3 {[%clk 0:00:50]} 31. Bg4 {[%clk 0:01:15]}  Rd8 {[%clk 0:00:27]} 32. Rc1 {[%clk 0:01:01]}  f5 {[%clk 0:00:27]} 33. Rxc3 {[%clk 0:00:57]}  fxg4 {[%clk 0:00:25]} 34. Nc6 {[%clk 0:00:58]}  Bxc6 {[%clk 0:00:20]} 35. Rxc6 {[%clk 0:00:56]}  gxh3 {[%clk 0:00:21]} 36. gxh3 {[%clk 0:00:57]}  Rd1+ {[%clk 0:00:20]} 37. Kg2 {[%clk 0:00:56]}  Ra1 {[%clk 0:00:21]} 38. Kf3 {[%clk 0:00:56]}  Kh7 {[%clk 0:00:19]} 39. h4 {[%clk 0:00:55]}  Ra4 {[%clk 0:00:19]} 40. h5 {[%clk 0:00:55]}  Ra5 {[%clk 0:00:18]} 41. Kg4 {[%clk 0:00:55]}  Ra4+ {[%clk 0:00:18]} 42. f4 {[%clk 0:00:56]}  Ra1 {[%clk 0:00:14]} 43. e4 {[%clk 0:00:55]}  Rg1+ {[%clk 0:00:14]} 44. Kf5 {[%clk 0:00:55]}  Rh1 {[%clk 0:00:13]} 45. Rc7 {[%clk 0:00:47]}  Rxh5+ {[%clk 0:00:13]} 46. Kg4 {[%clk 0:00:45]}  Ra5 {[%clk 0:00:13]} 47. Rxa7 {[%clk 0:00:45]}  Ra4 {[%clk 0:00:11]} 48. e5 {[%clk 0:00:44]}  Kg6 {[%clk 0:00:09]} 49. Ra8 {[%clk 0:00:42]}  h5+ {[%clk 0:00:09]} 50. Kg3 {[%clk 0:00:42]}  Ra3+ {[%clk 0:00:05]} 51. Kh4 {[%clk 0:00:39]}  Ra4 {[%clk 0:00:05]} 52. a7 {[%clk 0:00:31]}  Rxf4+ {[%clk 0:00:04]} 53. Kh3 {[%clk 0:00:31]}  Ra4 {[%clk 0:00:04]} 54. e6 {[%clk 0:00:31]}  Ra6 {[%clk 0:00:02]} 55. e7 {[%clk 0:00:30]}  Ra3+ {[%clk 0:00:02]} 56. Kg2 {[%clk 0:00:29]} 1-0


[Site "https://www.chess.com"]

[Event "Titled Tuesday Blitz March 21 Late 2023"]
[White "Rastbod, Ali"]
[Black "Torres Dominguez, David"]
[WhiteFideId "12567477"]
[BlackFideId "2220857"]
[WhiteElo "2211"]
[BlackElo "1999"]
[Result "1-0"]
[Round "01"]
[TimeControl "180+2"]
[Date "2023.03.21"]
[WhiteClock "0:01:51"]
[BlackClock "0:00:40"]

1. c4 {[%clk 0:02:59]}  e5 {[%clk 0:02:59]} 2. Nc3 {[%clk 0:02:37]}  Nc6 {[%clk 0:02:58]} 3. Nf3 {[%clk 0:02:37]}  f5 {[%clk 0:02:57]} 4. d4 {[%clk 0:02:38]}  e4 {[%clk 0:02:57]} 5. Ng1 {[%clk 0:02:38]}  Bb4 {[%clk 0:02:57]} 6. Bd2 {[%clk 0:02:38]}  Nxd4 {[%clk 0:02:52]} 7. Nxe4 {[%clk 0:02:38]}  Bxd2+ {[%clk 0:02:32]} 8. Qxd2 {[%clk 0:02:39]}  fxe4 {[%clk 0:02:31]} 9. Qxd4 {[%clk 0:02:38]}  Nf6 {[%clk 0:02:31]} 10. g3 {[%clk 0:02:35]}  O-O {[%clk 0:02:18]} 11. Bg2 {[%clk 0:02:35]}  Qe7 {[%clk 0:02:18]} 12. Nh3 {[%clk 0:02:34]}  Qb4+ {[%clk 0:02:15]} 13. Qc3 {[%clk 0:02:29]}  Qxc3+ {[%clk 0:02:15]} 14. bxc3 {[%clk 0:02:30]}  d6 {[%clk 0:02:15]} 15. Nf4 {[%clk 0:02:30]}  Re8 {[%clk 0:02:08]} 16. O-O-O {[%clk 0:02:27]}  b6 {[%clk 0:02:08]} 17. Nd5 {[%clk 0:02:23]}  Nxd5 {[%clk 0:02:07]} 18. cxd5 {[%clk 0:02:24]}  Bf5 {[%clk 0:01:58]} 19. Kd2 {[%clk 0:02:18]}  h6 {[%clk 0:01:58]} 20. Ke3 {[%clk 0:02:18]}  Re5 {[%clk 0:01:57]} 21. c4 {[%clk 0:02:15]}  Rae8 {[%clk 0:01:56]} 22. Rd4 {[%clk 0:02:05]}  a5 {[%clk 0:01:55]} 23. a3 {[%clk 0:02:03]}  Bh7 {[%clk 0:01:53]} 24. Rc1 {[%clk 0:02:02]}  Rf8 {[%clk 0:01:44]} 25. Bh3 {[%clk 0:02:02]}  Bf5 {[%clk 0:01:23]} 26. Bxf5 {[%clk 0:02:01]}  Rfxf5 {[%clk 0:01:23]} 27. Rf1 {[%clk 0:02:01]}  g5 {[%clk 0:01:14]} 28. Rxe4 {[%clk 0:02:00]}  Rxe4+ {[%clk 0:01:14]} 29. Kxe4 {[%clk 0:02:01]}  Re5+ {[%clk 0:01:15]} 30. Kd3 {[%clk 0:02:02]}  Kg7 {[%clk 0:01:14]} 31. e4 {[%clk 0:02:01]}  Re8 {[%clk 0:01:09]} 32. f4 {[%clk 0:02:02]}  Kg6 {[%clk 0:01:07]} 33. Kd4 {[%clk 0:01:59]}  Rf8 {[%clk 0:01:05]} 34. h3 {[%clk 0:01:56]}  h5 {[%clk 0:01:02]} 35. h4 {[%clk 0:01:54]}  gxh4 {[%clk 0:00:58]} 36. gxh4 {[%clk 0:01:54]}  Kf6 {[%clk 0:00:57]} 37. e5+ {[%clk 0:01:54]}  Ke7 {[%clk 0:00:57]} 38. e6 {[%clk 0:01:53]}  Rg8 {[%clk 0:00:56]} 39. Ke4 {[%clk 0:01:52]}  Rg4 {[%clk 0:00:55]} 40. Kf5 {[%clk 0:01:52]}  Rxh4 {[%clk 0:00:55]} 41. Rg1 {[%clk 0:01:53]}  Rh3 {[%clk 0:00:46]} 42. Rg7+ {[%clk 0:01:51]}  Kf8 {[%clk 0:00:45]} 43. Rxc7 {[%clk 0:01:50]}  Rxa3 {[%clk 0:00:44]} 44. Kf6 {[%clk 0:01:51]}  Re3 {[%clk 0:00:40]} 1-0


[Site "https://www.chess.com"]